Cogmind - Beta 15 @@@ ROGUE MODE // 2025.05.21 @ 21:07:47 Player: gorb Result: Destroyed by G-34 Mercenary with Small Laser Performance ------------- Evolutions (1) 500 Regions Visited (3) 600 Robots Destroyed (27) 135 Value Destroyed (761) 761 Prototype IDs (1) 20 Alien Tech Used (0) 0 Bonus (0) 0 TOTAL SCORE: 2016 Bonus ------- None Cogmind --------- Core Integrity 0/400 Matter 201/300 Energy 98/100 System Corruption 0% Temperature Cool (6) Movement Core (50) Location -9/Materials Parts ------- > --- POWER (1) -------- (None) > --- PROPULSION (4) --- (None) > --- UTILITY (2) ------ (None) > --- WEAPON (2) ------- (None) > --- INVENTORY (5) ---- Ion Engine Ion Engine Light Ion Engine Mining Laser Peak State ------------ > --- POWER ------------ Heavy Ion Engine > --- PROPULSION ------- Aluminum Leg Aluminum Leg Flight Unit Flight Unit > --- UTILITY ---------- Medium Storage Unit Targeting Computer > --- WEAPON ----------- Particle Cannon Particle Cannon > --- INVENTORY -------- Ion Engine Ion Engine Light Ion Engine EM Pulse Gun Beam Cannon Grenade Launcher Mining Laser [Rating: 13] Favorites ----------- Power Ion Engine Engine Ion Engine Propulsion Aluminum Leg Leg Aluminum Leg Wheel Wheel Flight Unit Flight Unit Utility Medium Storage Unit Device Cooling System Storage Medium Storage Unit Processor Targeting Computer Weapon Particle Cannon Energy Gun EM Pulse Gun Energy Cannon Particle Cannon Launcher Grenade Launcher Special Weapon Mining Laser Build | -11 -10 -10 -9 ------- Run | Yrd Mat Min Mat Slots Evolved 2 | . . . 2 Power . | . . . . Propulsion 2 | . . . 2 Utility . | . . . . Weapon . | . . . . Parts Attached 28 | 3 6 5 14 Power 2 | . 1 . 1 Engine 2 | . 1 . 1 Core . | . . . . Reactor . | . . . . Propulsion 14 | 2 . 4 8 Treads . | . . . . Leg 5 | . . 2 3 Wheel 2 | 2 . . . Hover . | . . . . Flight 7 | . . 2 5 Utility 4 | 1 1 1 1 Device 1 | . 1 . . Storage 2 | 1 . . 1 Processor 1 | . . 1 . Hackware . | . . . . Protection . | . . . . Artifact . | . . . . Weapon 8 | . 4 . 4 Energy Gun 3 | . 2 . 1 Energy Cannon 3 | . 2 . 1 Ballistic Gun . | . . . . Ballistic Cannon . | . . . . Launcher 1 | . . . 1 Special Weapon 1 | . . . 1 Impact Weapon . | . . . . Slashing Weapon . | . . . . Piercing Weapon . | . . . . Special Melee Weapon . | . . . . Unidentified Prototypes 1 | . . . 1 Parts Lost 11 | . . 1 10 Power . | . . . . Propulsion 7 | . . 1 6 Utility 1 | . . . 1 Weapon 3 | . . . 3 Highest Loss Streak 5 | . . 1 5 To Critical Strikes . | . . . . Average Backups 6 | 4 5 7 6 Power 2 | 1 1 2 2 Propulsion 1 | 1 2 2 . Utility . | . . . . Weapon 2 | 1 1 3 3 Tool/Special . | . . . . Unused Backups 3 | . . 1 2 Power 2 | . . . 2 Propulsion 1 | . . 1 . Utility . | . . . . Weapon . | . . . . Tool/Special . | . . . . Average Slot Usage (%) 81 | . 94 99 68 Engine 11 | . 14 14 10 Leg 12 | . . 4 20 Wheel 10 | . 28 22 . Flight 1 | . . . 3 Device 4 | . 11 9 . Storage 11 | . 14 14 10 Processor 5 | . . 4 6 Energy Cannon 20 | . 22 28 15 Launcher 1 | . . . 2 Peak Build Rating 13 | 3 10 10 13 Average Rating 8 | 2 9 9 9 On Entrance 5 | . 3 10 9 Naked Turns 51 | . . . 51 Heaviest Build 26 | 5 20 20 26 Greatest Support 40 | 20 20 20 40 Greatest Overweight (x) 3 | . . 1 3 Average Overweight (x) . | . . . . Largest Inventory Capacity 10 | 8 8 8 10 Average Capacity 8 | 7 8 8 9 Most Carried 9 | 7 8 8 9 Average Carried 6 | 5 5 7 6 Final Capacity 8 | 8 8 8 5 Final Carried 8 | 7 8 6 4 Class Distribution -------------------- 100% | Mutant Dominant Class ---------------- Mutant | -10/Materials Mutant | -10/Mines Mutant | -9/Materials Resources | -11 -10 -10 -9 ----------- Run | Yrd Mat Min Mat Matter Collected 608 | 230 . 87 291 Remotely . | . . . . Salvage Created 829 | . . 128 701 Parts 55 | . . 6 49 Haulers Intercepted . | . . . . Recyclers Shooed . | . . . . Parts Field Recycled . | . . . . Retrieved Matter . | . . . . Parts Self-Destructed . | . . . . Prevented . | . . . . Kills | -11 -10 -10 -9 ------- Run | Yrd Mat Min Mat Combat Hostiles Destroyed 22 | . . 4 18 Guns 1 | . . . 1 Cannons 17 | . . 4 13 AOE 4 | . . . 4 Classes Destroyed 7 | . . 2 5 Worker 1 | . . . 1 Builder 1 | . . . 1 Tunneler 1 | . . . 1 Watcher 2 | . . . 2 Swarmer 6 | . . 2 4 Grunt 10 | . . 2 8 Sentry 6 | . . . 6 Best Kill Streak 10 | . . 2 10 Combat Bots Only 4 | . . 2 4 Max Kills in Single Turn 3 | . . 1 3 Gunslinging . | . . . . Exploded 2 | . . . 2 Melee . | . . . . Uniques/NPCs Destroyed . | . . . . Combat | -11 -10 -10 -9 -------- Run | Yrd Mat Min Mat Hostile Shots Fired 160 | . . 25 135 Missed 37 | . . 3 34 Hits 123 | . . 22 101 Projectile 123 | . . 22 101 Critical Strikes 2 | . . . 2 Damage Taken 1541 | . . 219 1322 Core 453 | . . 52 401 Absorbed by Shields . | . . . . Core Remaining (%) 89 | 100 . 79 . Volleys Fired 47 | . . 10 37 Largest 2 | . . 2 2 Hottest 136 | . . 136 136 Shots Fired 83 | . . 20 63 Gun 11 | . . . 11 Cannon 56 | . . 20 36 Launcher 15 | . . . 15 Special 1 | . . . 1 Kinetic . | . . . . Thermal 57 | . . 20 37 Explosive 15 | . . . 15 Electromagnetic 11 | . . . 11 Robot Hit Streak 9 | . . 7 9 Robot Miss Streak 3 | . . 2 3 Penetration Max . | . . . . Secondary Targets . | . . . . Shots Hit Robots 52 | . . 13 39 Core Hits 42 | . . 5 37 Critical Kills . | . . . . Critical Parts Destroyed . | . . . . Critical Strikes . | . . . . Melee Attacks . | . . . . Impact . | . . . . Slashing . | . . . . Piercing . | . . . . Sneak Attacks . | . . . . Combat Hostiles . | . . . . Follow-up Attacks . | . . . . Damage Inflicted 1336 | . . 267 1069 Guns 80 | . . . 80 Cannons 753 | . . 267 486 Explosions 502 | . . . 502 Melee . | . . . . Ramming 1 | . . . 1 Kinetic . | . . . . Thermal 753 | . . 267 486 Explosive 502 | . . . 502 Electromagnetic 80 | . . . 80 Impact . | . . . . Slashing . | . . . . Piercing . | . . . . Highest Corruption 1 | . 1 1 . Average Corruption 1 | . 1 1 . Corruption Purged . | . . . . Corruption Blocked . | . . . . Effects 1 | . . 1 . Energy Discharges 1 | . . 1 . Overload Shots . | . . . . Overflow Damage 12 | . . . 12 Projectiles 2 | . . . 2 Explosions 10 | . . . 10 Melee . | . . . . Knockbacks . | . . . . Impact . | . . . . Kinetic . | . . . . Secondary . | . . . . Self-Inflicted Damage 124 | . . . 124 Shots 11 | . . . 11 Rammed . | . . . . Targets Rammed 1 | . . . 1 Kicked 1 | . . . 1 Crushed . | . . . . Highest Temperature 459 | . . 375 459 Average Temperature 148 | . . 140 151 Received Heat Transfer 492 | . . 45 447 Effects 8 | . . 1 7 Shutdowns 1 | . . . 1 Energy Bleed 1 | . . . 1 Matter Decay 3 | . . . 3 Short Circuit 2 | . . . 2 Damage (minor) 1 | . . 1 . Siege Activations . | . . . . Martial Activations . | . . . . Shielding Activations . | . . . . Robots Disrupted . | . . . . Combat Hostiles . | . . . . Robots Corrupted . | . . . . Combat Hostiles . | . . . . Parts Fried . | . . . . Impact Corruptions . | . . . . Robots Melted . | . . . . Combat Hostiles . | . . . . Parts Melted 1 | . . 1 . Heat Transferred 1406 | . . 481 925 Parts Sabotaged . | . . . . Parts Stolen . | . . . . Parts Stripped . | . . . . Power Chain Reactions . | . . . . Alert | -11 -10 -10 -9 ------- Run | Yrd Mat Min Mat Maximum Alert Level 1 | . . . 1 Low Security (%) 85 | 100 100 100 72 Level 1 14 | . . . 27 Level 2 . | . . . . Level 3 . | . . . . Level 4 . | . . . . Level 5 . | . . . . High Security . | . . . . Max Security . | . . . . Peak Influence 355 | . . 65 355 Initial 3 | . . . 3 Average 65 | . . 18 111 Influence Increases 760 | . . 115 645 Destroy 0b10 Robot/C 440 | . . 80 360 Destroy 0b10 Robot/NC 25 | . . . 25 Destroy Leader 134 | . . 20 114 Successful Hack 19 | . . . 19 Disable Machine 30 | . . 15 15 Destroy Structure 67 | . . . 67 Partial Spotted 15 | . . . 15 Lose Combat Pursuer 30 | . . . 30 Influence Decreases 405 | . . 105 300 Entered New Map 7 | . . . 7 Time Decay 288 | . . 95 193 Lost Part 110 | . . 10 100 Squads Dispatched 6 | . 1 . 5 Investigation 3 | . . . 3 Extermination . | . . . . Reinforcement 3 | . 1 . 2 Assault . | . . . . Garrison . | . . . . Intercept . | . . . . Searches Triggered . | . . . . Construction Impeded . | . . . . Haulers Reinforced . | . . . . Active Scanning Responses . | . . . . Cargo Convoy Interrupts . | . . . . Stealth | -11 -10 -10 -9 --------- Run | Yrd Mat Min Mat Distress Signals 3 | . . . 3 Communications Jammed . | . . . . Distress Signals . | . . . . Times Spotted 45 | . 3 4 38 Peak Tracking Total 10 | . 3 3 10 Tactical Retreats 1 | . . . 1 Traps | -11 -10 -10 -9 ------- Run | Yrd Mat Min Mat Traps Triggered 2 | . 1 . 1 Indirectly . | . . . . Trap Hack Attempts . | . . . . Triggered . | . . . . Disarmed . | . . . . Reprogrammed . | . . . . Reused . | . . . . Traps Extracted . | . . . . Installed . | . . . . Triggered . | . . . . Machines | -11 -10 -10 -9 ---------- Run | Yrd Mat Min Mat Machines Disabled 2 | . . 1 1 Max in Single Turn 1 | . . 1 1 Machines Repaired . | . . . . Machines Dismantled . | . . . . Machines Sabotaged . | . . . . Overloaded Fab Kills . | . . . . Hacking | -11 -10 -10 -9 --------- Run | Yrd Mat Min Mat Machines Accessed 5 | . . . 5 Terminals 5 | . . . 5 Fabricators . | . . . . Repair Stations . | . . . . Recycling Units . | . . . . Scanalyzers . | . . . . Garrison Access . | . . . . Total Hacks 14 | . . . 14 Successful 5 | . . . 5 Failed 9 | . . . 9 Catastrophic . | . . . . Database Lockouts . | . . . . Manual 13 | . . . 13 Terminals 14 | . . . 14 Fabricators . | . . . . Repair Stations . | . . . . Recycling Units . | . . . . Scanalyzers . | . . . . Garrison Access . | . . . . Terminal Hacks 1 | . . . 1 Zone Layout 1 | . . . 1 Fabricator Hacks . | . . . . Repair Station Hacks . | . . . . Recycling Unit Hacks . | . . . . Scanalyzer . | . . . . Garrison Access Hacks . | . . . . Unauthorized Hacks 4 | . . . 4 Terminals 4 | . . . 4 Track 2 | . . . 2 Botnet 2 | . . . 2 Fabricators . | . . . . Repair Stations . | . . . . Recycling Units . | . . . . Scanalyzers . | . . . . Garrison Access . | . . . . Data Cores Recovered . | . . . . Used . | . . . . Hacking Detections 4 | . . . 4 Full Trace Events 2 | . . . 2 Feedback Events . | . . . . Feedback Blocked . | . . . . Robot Schematics Acquired . | . . . . Robots Built . | . . . . Authchips . | . . . . Time . | . . . . Total Robot Build Rating . | . . . . Part Schematics Acquired . | . . . . Parts Built . | . . . . Authchips . | . . . . Time . | . . . . Total Part Build Rating . | . . . . Parts Repaired . | . . . . Time . | . . . . Parts Recycled . | . . . . Recycled Matter . | . . . . Retrieved Matter . | . . . . Retrieved Components . | . . . . Parts Scanalyzed . | . . . . Part Schematics Acquired . | . . . . Parts Damaged . | . . . . Bothacking | -11 -10 -10 -9 ------------ Run | Yrd Mat Min Mat Used RIF Installer . | . . . . Robots Hacked . | . . . . Non-combat . | . . . . Combat . | . . . . Robot Hacks Applied . | . . . . Relay Couplers Released . | . . . . Fabnet Peak Effective % . | . . . . Robots Rewired . | . . . . Allies Hacked . | . . . . Hacks Repelled . | . . . . Allies | -11 -10 -10 -9 -------- Run | Yrd Mat Min Mat Total Allies . | . . . . Largest Group . | . . . . Highest-Rated Group . | . . . . Highest-Rated Ally . | . . . . Total Orders . | . . . . Ally Attacks . | . . . . Total Damage . | . . . . Kills . | . . . . Allies Corrupted . | . . . . Allies Melted . | . . . . Intel | -11 -10 -10 -9 ------- Run | Yrd Mat Min Mat Active Infowar (turns) . | . . . . Robot Analysis Total . | . . . . Derelict Logs Recovered 2 | . . 2 . Drone Launches . | . . . . Drone Recoveries . | . . . . Exploration | -11 -10 -10 -9 ------------- Run | Yrd Mat Min Mat Turns Passed 1024 | 61 104 316 543 Spaces Moved 782 | 68 111 303 300 Core 124 | 20 . . 104 Treads . | . . . . Legs 219 | . . 41 178 Wheels 421 | 48 111 262 . Hover . | . . . . Flight 18 | . . . 18 Fastest Speed 50 | 50 80 80 50 Average Speed 102 | 71 80 85 134 Slowest Speed 277 | 80 80 120 277 Overloaded Moves . | . . . . Propulsion Burnouts . | . . . . Robots Hopped . | . . . . Potential Cave-ins . | . . . . Cave-ins Triggered . | . . . . Exploration Rate (%) 34 | 3 25 66 42 Regions Visited 3 Branch Regions 1 Pre-discovered Areas 2 | . . 2 . Known Exits Taken . | . . . . Unknown Exits Taken 3 | 1 1 1 . Scrap Searched . | . . . . Spaces Dug 1 | . . . 1 Terrain Destroyed 64 | . . . 64 Melee . | . . . . Projectile 1 | . . . 1 AOE 63 | . . . 63 Terrain Rammed . | . . . . Walls Destroyed . | . . . . Machines Disabled . | . . . . Actions | -11 -10 -10 -9 --------- Run | Yrd Mat Min Mat Total 921 | 80 125 341 375 Wait 17 | . . 16 1 Move 779 | 67 110 302 300 Hop . | . . . . Pick Up 32 | 10 7 3 12 Fast Attach 1 | . . 1 . Attach 23 | 3 4 4 12 Detach . | . . . . Swap 6 | . 2 . 4 Drop 15 | . 2 5 8 Fire 47 | . . 10 37 Melee . | . . . . Ram . | . . . . Kick 1 | . . . 1 Crush . | . . . . Escape Stasis . | . . . . Rewire . | . . . . Trap . | . . . . Miscellaneous . | . . . . Route ------- -11/Scrapyard -10/Materials -10/Mines -9/Materials History --------- Turn | Location | Event 8 | -11/Scrapyard | Discovered new exit (range 16) 62 | -11/Scrapyard | Entered Materials 154 | -10/Materials | Discovered new exit (range 7) 166 | -10/Materials | Entered Mines 246 | -10/Mines | Learned location of Storage (-8) 309 | -10/Mines | Build established: Mutant 369 | -10/Mines | Joined a pair of Derelicts in attacking an 0b10 outpost 471 | -10/Mines | Discovered new exit (range 10) 482 | -10/Mines | Entered Materials 482 | -9/Materials | Evolved 2 slots: Propulsion x2 856 | -9/Materials | Lost 4 parts (2n1u1w) 963 | -9/Materials | Core integrity fell below 50% 974 | -9/Materials | Released all parts (3) 995 | -9/Materials | Lost 5 parts (4n1w) 1021 | -9/Materials | Core integrity fell below 20% 1025 | -9/Materials | Destroyed by G-34 Mercenary with Small Laser Last Messages --------------- G-34 Mercenary destroyed. The unstable cave ceiling collapses. Lgt. Armor Plating crushed. K-01 Serf collects debris. Overheating: Matter decay (-21). Dropped Broken Hvy. Ion Engine. Released Beam Cannon. Released EM Pulse Gun. Released Med. Storage Unit. Acquired 50 matter. Overheating: Matter decay (-24). Acquired 11 matter. K-01 Serf collects debris. Acquired 10 matter. W-16 Scout sends out distress signal. K-01 Serf collects debris. ALERT: Hostiles spotted, dispatching reinforcements to Terminal M005. C-30 ARC bursts open, deploying its payload. S-10 Pest unfolds itself. Map ----- +----------------------------------------------------+ | ????????????????????????????# #??????????????? | | ????????????????????????????# #??????????????? | | ???????????????????########## #??????????????? | | ??????????????????# ## ###########????? | | ??????????????????# """ # "%" | | ??????????????????# """ # " | | ??????????????????# """ # | | ??????????????????# + ##################? | | ??????????????????# ! # #?????????????????? | | ??????????????????# # #?????????????????? | | ??????????????????# ""T"" # #?????????????????? | | ??????????????????# """"" # #########?????????? | | ??????????????????########## # #?????????? | | ???????????????????????????# # #?????????? | | ???????????????????????????# + """" #?????????? | | ???????????????????????????# # """" #?????????? | | ???????????????????????????# # """" #?????????? | | ???????????????????????????# #########?????????? | | ???????????????????????????# #?????????????????? | | ???????????????????????????# #?????????????????? | | ???????????????????????????# #?????????????????? | | ???????????????????????????# #?????????????????? | | ???????????????????????????# #?????????????????? | | ???????????????????????????# #?????????????????? | | ????????????????????##+##### #######+### ?????? | | ????????????????????# @ g ????? | | ????????????????????# t ????? | | ????????????????????# ????? | | ????????????????????#########+##############?????? | | ??????????????????????????? ?????????????????? | | ????????????????????????? """???????????????? | | ???????????????????????# !/ """ #?????????????? | | ???????????????????????# !/ """ #?????????????? | | ???????????????????????# // #?????????????? | | ???????????????????????# ??????????????? | | ???????????????????????# ??????????????? | | ???????????????????????############??????????????? | | | | | | | | | | | | | | | | | | | | | | | | | | | +----------------------------------------------------+ Best States ------------- Heat Dissipation 47 Energy Generation 14 Energy Capacity 280 Matter Stores 300 Matter Capacity 300 Sight Range 16 Terrain Scan Density 10 Evasion (%) 55 Targeting Accuracy 5 Item Schematics ----------------- None Robot Schematics ------------------ None Fabricated ------------ Nothing Repaired ---------- Nothing Alien Tech Used ----------------- None Achievements -------------- None Challenges ------------ None Game ------ Seed PowerServoProjector Manual? 0 Play Time 00:14:02 Cumulative 38.1 hours Start 2025.05.21 @ 20:56:12 End 2025.05.21 @ 21:07:47 Sessions 1 Manual Loads 0 Difficulty Rogue Special Mode None Game No. 61 Rogue 59 Adventurer 0 Explorer 2 Win Type - Total 0 Types 0/0/0/0/0/0/0/0/0/0 Lore% 24 Gallery% 27 Achievement% 28 Wizard Run 0 Options --------- Layout 1 ASCII 0 Keyboard 0 Movement Mouse Keybinds 0 Fullscreen 1 Font 24/Smallcaps Map View 50x35 Zoom Use 0% Tactical HUD 0 Map Filters NONE Filters NONE Steam 1 RUN: a0c98b3e-0f34-41e2-99c9-cd55eaa84943